lending/lending_fUSD_20250429
["ID","MTS","AMOUNT","RATE_DAILY","PERIOD"]
[359373154,1745954459443,-5500.0,0.00052,90]
[359373155,1745954459483,-500.0,0.00052,45]
[359373156,1745954459522,-15746.0,0.00052,120]
[359373157,1745954459561,-5000.0,0.00052,120]
[359373158,1745954459599,-779.69343885,0.00052,30]
[359373159,1745954459636,-10000.0,0.00052054,120]
[359373160,1745954459676,-1684.98,0.00052054,120]
[359373161,1745954459713,-2000.0,0.00052055,120]
[359373162,1745954459749,-1000.0,0.00052055,120]
[359373163,1745954459786,-200.0,0.00052274,30]
[359373164,1745954459826,-1599.14,0.00052299,30]
[359373165,1745954459863,-333.02,0.00052299,30]
[359373166,1745954459900,-1600.76,0.00052299,30]
[359373167,1745954459940,-910.28,0.00052299,30]
[359373168,1745954459978,-664.67,0.00052328,36]
[359373169,1745954460015,-771.80147824,0.00052328,120]
[359373170,1745954460054,-250862.0,0.0005244,30]
[359373171,1745954460093,-2000.0,0.0005244,40]
[359373172,1745954460135,-3069.03274376,0.00052486,30]
[359373173,1745954460172,-5000.0,0.000525,120]
[359373174,1745954460209,-250.0,0.000525,120]
[359373175,1745954460247,-536982.84854264,0.000525,120]
[359373176,1745954466132,-150.0,0.00051506,33]
[359373177,1745954466171,-200.0,0.00052499,120]
[359373178,1745954466207,-313540.15145736,0.000525,120]
[359373179,1745954466247,-317.94001965,0.000525,120]
[359373180,1745954466288,-163.91024141,0.000525,120]
[359373181,1745954466331,-870.11873629,0.0005255,60]
[359373182,1745954466372,-506.29,0.00052602,120]
[359373183,1745954466418,-1200.0,0.0005266,120]
[359373184,1745954466460,-506.29,0.00052684,120]
[359373185,1745954466503,-150.0,0.0005271,30]
[359373186,1745954466546,-1205.15,0.0005271,30]
[359373187,1745954466583,-451.08,0.0005271,30]
[359373188,1745954466622,-162.05,0.0005271,30]
[359373189,1745954466663,-150.0,0.0005271,30]
[359373190,1745954466700,-300.0,0.0005271,30]
[359373191,1745954466736,-154.13,0.0005271,30]
[359373192,1745954466774,-351.69,0.0005271,30]
[359373193,1745954466812,-1152.67,0.0005271,30]
[359373194,1745954466849,-451.08,0.0005271,30]
[359373195,1745954466886,-150.0,0.0005271,30]
[359373196,1745954466924,-162.05,0.0005271,30]
[359373197,1745954466963,-351.69,0.0005271,30]
[359373198,1745954467002,-150.0,0.0005271,30]
[359373199,1745954467043,-451.08,0.0005271,30]
[359373200,1745954467082,-150.0,0.0005271,30]
[359373201,1745954467124,-1152.67,0.0005271,30]
[359373202,1745954467162,-162.05,0.0005271,30]
[359373203,1745954467200,-150.0,0.0005271,30]
[359373204,1745954467239,-351.69,0.0005271,30]
[359373205,1745954467276,-150.0,0.0005271,30]
[359373206,1745954467315,-451.08,0.0005271,30]
[359373207,1745954467373,-169.99,0.0005271,30]
[359373208,1745954467416,-1152.67,0.0005271,30]
[359373209,1745954467460,-351.69,0.0005271,30]
[359373210,1745954467505,-302.37,0.0005271,30]
[359373211,1745954467548,-451.08,0.0005271,30]
[359373212,1745954467586,-351.69,0.0005271,30]
[359373213,1745954467625,-461.16,0.0005271,30]
[359373214,1745954467664,-738.26,0.0005271,30]
[359373215,1745954467702,-151.0,0.0005274,120]
[359373216,1745954467740,-506.29,0.00052767,120]
[359373217,1745954468006,-506.29,0.00052849,120]
[359373218,1745954468052,-1684.98,0.00052876,120]
[359373219,1745954468096,-7150.43916179,0.0005288,30]
[359373220,1745954468139,-2375.0,0.0005289,40]
[359373221,1745954468177,-506.29,0.00052931,120]
[359373222,1745954468217,-50000.0,0.00053,53]
[359373223,1745954468253,-775.0,0.00053,120]
[359373224,1745954468291,-5000.0,0.00053,120]
[359373225,1745954468331,-1950.56657542,0.00053,30]
[359373226,1745954468369,-618.19593693,0.00053,120]
[359373227,1745954468410,-5000.0,0.00053,120]
[359373228,1745954468450,-1000000.0,0.00053,120]
[359373229,1745954468489,-250.0,0.00053,120]
[359373230,1745954468526,-2211.94726531,0.00053,120]
[359373231,1745954468564,-200.0,0.00053,120]
[359373232,1745954468601,-204.78888814,0.00053,30]
[359373233,1745954468638,-10000.0,0.00053,30]
[359373234,1745954468676,-25000.0,0.00053,30]
[359373235,1745954468713,-173.55663913,0.00053,60]
[359373236,1745954468750,-338.79657831,0.00053,120]
[359373237,1745954468791,-217939.81569107,0.00053,120]
[359373238,1745954468832,-200.0,0.00053,120]
[359373239,1745954468869,-506.29,0.00053013,120]
[359373240,1745954468909,-506.29,0.00053095,120]
[359373241,1745954468946,-664.67,0.0005315,39]
[359373242,1745954468984,-2158.9373611,0.00053177,120]
[359373243,1745954469021,-506.29,0.00053178,120]
[359373244,1745954469058,-580.02642684,0.00053179,120]
[359373245,1745954469095,-200.0,0.00053186,120]
[359373246,1745954469133,-200.0,0.00053189,120]
[359373247,1745954469169,-200.0,0.0005319,120]
[359373248,1745954469207,-8903.65731748,0.00053194,120]
[359373249,1745954469243,-2158.9373611,0.00053196,120]
[359373250,1745954469281,-26836.63296647,0.00053197,120]
[359373251,1745954469320,-6676.98508057,0.00053213,120]
[359373252,1745954469357,-2158.9373611,0.00053215,120]
[359373253,1745954469395,-2158.9373611,0.00053216,120]
[359373254,1745954469435,-200.0,0.00053217,120]
[359373255,1745954469478,-277.02760318,0.00053217,120]
[359373256,1745954469523,-200.0,0.00053218,120]
[359373257,1745954469567,-277.02760318,0.00053221,120]
[359373258,1745954469611,-200.0,0.00053225,120]
[359373259,1745954469650,-2382.88667308,0.00053226,120]
[359373260,1745954469689,-8903.65731748,0.00053227,120]
[359373261,1745954469740,-277.02760318,0.00053231,120]
[359373262,1745954469783,-200.0,0.00053231,120]
[359373263,1745954469821,-277.02760318,0.00053234,120]
[359373264,1745954469861,-8903.65731748,0.00053236,120]
[359373265,1745954469902,-2158.9373611,0.0005324,120]
[359373266,1745954469942,-8903.65731748,0.00053246,120]
[359373267,1745954469982,-2158.9373611,0.00053251,120]
[359373268,1745954470026,-580.02642684,0.00053252,120]
[359373269,1745954470065,-4189.15988589,0.00053255,120]
[359373270,1745954470103,-277.02760318,0.00053258,120]
[359373271,1745954470142,-200.0,0.00053259,120]
[359373272,1745954470180,-506.29,0.0005326,120]
[359373273,1745954470218,-200.0,0.0005326,30]
[359373274,1745954470256,-2158.9373611,0.0005326,120]
[359373275,1745954470295,-26836.63296647,0.00053272,120]
[359373276,1745954470332,-2158.9373611,0.00053279,120]
[359373277,1745954470368,-200.0,0.0005328,120]
[359373278,1745954470410,-26836.63296647,0.00053283,120]
[359373279,1745954470448,-200.0,0.00053287,120]
[359373280,1745954470487,-8903.65731748,0.00053289,120]
[359373281,1745954470526,-200.0,0.00053289,120]
[359373282,1745954470564,-200.0,0.00053289,120]
[359373283,1745954470600,-200.0,0.00053292,120]
[359373284,1745954470640,-2158.9373611,0.00053294,120]
[359373285,1745954470677,-6676.98508057,0.00053297,120]
[359373286,1745954470713,-277.02760318,0.00053303,120]
[359373287,1745954470750,-580.02642684,0.00053305,120]
[359373288,1745954470789,-4189.15988589,0.00053313,120]
[359373289,1745954470827,-2158.9373611,0.00053317,120]
[359373290,1745954470865,-200.0,0.00053322,120]
[359373291,1745954470903,-26836.63296647,0.00053325,120]
[359373292,1745954470943,-506.29,0.00053342,120]
[359373293,1745954470981,-2382.88667308,0.00053342,120]
[359373294,1745954471020,-200.0,0.00053343,120]
[359373295,1745954471059,-8903.65731748,0.0005335,120]
[359373296,1745954471098,-4189.15988589,0.00053353,120]
[359373297,1745954471136,-570.51603723,0.00053354,120]
[359373298,1745954471172,-2158.9373611,0.00053359,120]
[359373299,1745954471208,-6676.98508057,0.00053362,120]
[359373300,1745954471245,-2382.88667308,0.00053367,120]
[359373301,1745954471283,-200.0,0.00053369,120]
[359373302,1745954471320,-4189.15988589,0.00053371,120]
[359373303,1745954471356,-26836.63296647,0.00053375,120]
[359373304,1745954471392,-26836.63296647,0.00053379,120]
[359373305,1745954471428,-417.09473235,0.00053381,120]
[359373306,1745954471465,-570.51603723,0.00053385,120]
[359373307,1745954471501,-6676.98508057,0.0005339,120]
[359373308,1745954471537,-4189.15988589,0.00053395,120]
[359373309,1745954471574,-570.51603723,0.00053396,120]
[359373310,1745954471609,-200.0,0.00053398,120]
[359373311,1745954471805,-290.0,0.000534,120]
[359373312,1745954471843,-200.0,0.00053401,120]
[359373313,1745954471881,-200.0,0.00053402,120]
[359373314,1745954471919,-336.0,0.00053403,120]
[359373315,1745954471958,-200.0,0.00053404,120]
[359373316,1745954471998,-2382.88667308,0.00053405,120]
[359373317,1745954472041,-4189.15988589,0.00053405,120]
[359373318,1745954472089,-417.09473235,0.00053407,120]
[359373319,1745954472135,-277.02760318,0.00053408,120]
[359373320,1745954472181,-200.0,0.00053412,120]
[359373321,1745954472223,-2382.88667308,0.00053412,120]
[359373322,1745954472261,-200.0,0.00053414,120]
[359373323,1745954472304,-200.0,0.00053419,120]
[359373324,1745954472342,-506.29,0.00053424,120]
[359373325,1745954472385,-417.09473235,0.00053428,120]
[359373326,1745954472423,-417.09473235,0.0005343,120]
[359373327,1745954472461,-580.02642684,0.00053431,120]
[359373328,1745954472500,-570.51603723,0.00053432,120]
[359373329,1745954472539,-4189.15988589,0.00053439,120]
[359373330,1745954472576,-2500.0,0.0005344,45]
[359373331,1745954472614,-2158.9373611,0.00053443,120]
[359373332,1745954472651,-8903.65731748,0.00053443,120]
[359373333,1745954472687,-200.0,0.00053446,120]
[359373334,1745954472723,-417.09473235,0.00053448,120]
[359373335,1745954472760,-200.0,0.0005345,120]
[359373336,1745954472799,-570.51603723,0.0005345,120]
[359373337,1745954472836,-417.09473235,0.00053452,120]
[359373338,1745954472874,-200.0,0.00053452,120]
[359373339,1745954472912,-580.02642684,0.00053457,120]
[359373340,1745954472949,-26836.63296647,0.00053457,120]
[359373341,1745954472986,-200.0,0.00053462,120]
[359373342,1745954473025,-2382.88667308,0.00053466,120]
[359373343,1745954473063,-417.09473235,0.00053468,120]
[359373344,1745954473105,-151.0,0.00053479,120]
[359373345,1745954473147,-570.51603723,0.00053487,120]
[359373346,1745954473188,-580.02642684,0.00053492,120]
[359373347,1745954473227,-570.51603723,0.00053493,120]
[359373348,1745954473266,-6676.98508057,0.00053495,120]
[359373349,1745954473306,-5000.0,0.000535,120]
[359373350,1745954473556,-5000.0,0.000535,120]
[359373351,1745954473596,-772.52067009,0.000535,120]
[359373352,1745954473635,-250.0,0.000535,120]
[359373353,1745954473675,-506.29,0.00053506,120]
[359373354,1745954473711,-200.0,0.00053512,120]
[359373355,1745954473749,-200.0,0.00053516,120]
[359373356,1745954473788,-6676.98508057,0.00053525,120]
[359373357,1745954473826,-200.0,0.00053526,120]
[359373358,1745954473868,-200.0,0.00053532,120]
[359373359,1745954473907,-185.23563064,0.00053535,120]
[359373360,1745954473947,-200.0,0.00053537,120]
[359373361,1745954473986,-2158.9373611,0.00053538,120]
[359373362,1745954474026,-200.0,0.00053547,120]
[359373363,1745954474064,-580.02642684,0.00053561,120]
[359373364,1745954474103,-6676.98508057,0.00053562,120]
[359373365,1745954474141,-200.0,0.00053566,120]
[359373366,1745954474178,-200.0,0.0005357,120]
[359373367,1745954474214,-200.0,0.0005357,120]
[359373368,1745954474252,-200.0,0.0005358,120]
[359373369,1745954474291,-200.0,0.00053581,120]
[359373370,1745954474328,-2158.9373611,0.00053585,120]
[359373371,1745954474365,-2382.88667308,0.00053588,120]
[359373372,1745954474407,-506.29,0.00053589,120]
[359373373,1745954474447,-506.29,0.00053671,120]
[359373374,1745954474487,-1684.98,0.00053698,120]
[359373375,1745954474526,-20000.0,0.000537,120]
[359373376,1745954474564,-506.29,0.00053753,120]
[359373377,1745954474604,-25000.0,0.000538,30]
[359373378,1745954474643,-1033.0,0.000538,120]
[359373379,1745954474685,-506.29,0.00053835,120]
[359373380,1745954474724,-336.0,0.00053852,120]
[359373381,1745954474768,-3261.13680536,0.0005387,120]
[359373382,1745954474808,-1020.51874128,0.000539,120]
[359373383,1745954474847,-34384.75969413,0.000539,120]
[359373384,1745954474886,-20000.0,0.000539,120]
[359373385,1745954474927,-506.29,0.00053917,120]
[359373386,1745954474966,-664.67,0.00053972,42]
[359373387,1745954475005,-24984.0,0.00053973,30]
[359373388,1745954475046,-435.0,0.00053986,120]
[359373389,1745954475085,-1000.0,0.00053987,60]
[359373390,1745954475123,-60199.63266168,0.0005399,120]
[359373391,1745954475162,-552.26367761,0.00053998,120]
[359373392,1745954475202,-170.79253054,0.00053998,120]
[359373393,1745954475238,-435.0,0.00053999,120]
[359373394,1745954475276,-1000.0,0.00053999,120]
[359373395,1745954475315,-50000.0,0.00054,54]
[359373396,1745954475352,-800.0,0.00054,120]
[359373397,1745954475391,-420.0,0.00054,120]
[359373398,1745954475428,-5000.0,0.00054,120]
[359373399,1745954475465,-242.70060684,0.00054,30]
[359373400,1745954475502,-471.96,0.00054,60]
[359373401,1745954475539,-2005.5295435,0.00054,30]
[359373402,1745954475576,-386267.71726348,0.00054,30]
[359373403,1745954475612,-200000.0,0.00054,120]
[359373404,1745954475655,-1000000.0,0.00054,120]
[359373405,1745954475847,-200.0,0.00054,120]
[359373406,1745954475886,-250.0,0.00054,120]
[359373407,1745954475924,-3576.35167331,0.00054,60]
[359373408,1745954475964,-300.0,0.00054,30]
[359373409,1745954476003,-300.0,0.00054,30]
[359373410,1745954476041,-309.36578313,0.00054,30]
[359373411,1745954476080,-151.0,0.00054,120]
[359373412,1745954476119,-10000.0,0.00054,120]
[359373413,1745954476156,-10000.0,0.00054,30]
[359373414,1745954476193,-925.59372154,0.00054,120]
[359373415,1745954476229,-1000.0,0.00054,120]
[359373416,1745954476266,-151.95667769,0.00054,120]
[359373417,1745954476304,-1188.32886924,0.00054,120]
[359373418,1745954476342,-6905.31883811,0.00054,120]
[359373419,1745954476385,-37430.66781989,0.00054,30]
[359373420,1745954476423,-1886.20597473,0.00054,120]
[359373421,1745954476463,-3987.28062925,0.00054,120]
[359373422,1745954476500,-1000.0,0.00054,120]
[359373423,1745954476538,-1443.60488012,0.00054,120]
[359373424,1745954481586,-207.4,0.00052499,120]
[359373425,1745954481628,-215.0738,0.00052499,120]
[359373426,1745954481667,-223.0315306,0.00052499,120]
[359373427,1745954481707,-231.28369723,0.00052499,120]
[359373428,1745954481746,-239.84119403,0.00052499,120]
[359373429,1745954481785,-248.71531821,0.00052499,120]
[359373430,1745954481825,-257.91778498,0.00052499,120]
[359373431,1745954481863,-267.46074303,0.00052499,120]
[359373432,1745954481900,-277.35679052,0.00052499,120]
[359373433,1745954481938,-287.61899177,0.00052499,120]
[359373434,1745954481978,-236.04080865,0.00052499,120]
[359373435,1745954482015,-573.91742098,0.000538,120]
[359373436,1745954482056,-14302.39511988,0.00054,120]
[359373437,1745954482093,-4547.39697596,0.00054,120]
[359373438,1745954482130,-761.0,0.00054,120]
[359373439,1745954482168,-21211.80259597,0.00054,120]
[359373440,1745954482205,-506.29,0.00054,120]
[359373441,1745954482241,-506.29,0.00054082,120]
[359373442,1745954482277,-20000.0,0.000541,120]
[359373443,1745954482314,-506.29,0.00054164,120]
[359373444,1745954482350,-6000.0,0.00054189,60]
[359373445,1745954482387,-151.0,0.00054219,120]
[359373446,1745954482423,-1136.97,0.0005423,120]
[359373447,1745954482460,-506.29,0.00054246,120]
[359373448,1745954482499,-50021.05235334,0.000543,30]
[359373449,1745954482538,-506.29,0.00054328,120]
[359373450,1745954482576,-2241.94225425,0.00054398,59]
[359373451,1745954482612,-158.01508653,0.000544,120]
[359373452,1745954482649,-70000.0,0.000544,120]
[359373453,1745954482685,-506.29,0.0005441,120]
[359373454,1745954482721,-3000.0,0.0005444,45]
[359373455,1745954482758,-2000.0,0.0005444,40]
[359373456,1745954482795,-627.20149404,0.00054445,31]
[359373457,1745954482833,-506.43132603,0.00054493,120]
[359373458,1745954482869,-500.0,0.00054495,120]
[359373459,1745954482907,-500.0,0.00054495,120]
[359373460,1745954482944,-500.0,0.00054495,120]
[359373461,1745954482981,-500.0,0.00054495,120]
[359373462,1745954483018,-150.0,0.00054495,120]
[359373463,1745954483054,-150.0,0.00054495,120]
[359373464,1745954483090,-150.0,0.00054495,120]
[359373465,1745954483127,-150.0,0.00054495,120]
[359373466,1745954483162,-285.07322772,0.00054495,120]
[359373467,1745954483198,-5000.0,0.000545,120]
[359373468,1745954483234,-5000.0,0.000545,120]
[359373469,1745954483270,-5000.0,0.000545,120]
[359373470,1745954483308,-1000000.0,0.000545,120]
[359373471,1745954483347,-1000000.0,0.000545,120]
[359373472,1745954483388,-250.0,0.000545,120]
[359373473,1745954483429,-2153.0,0.000545,110]
[359373474,1745954483469,-1684.98,0.0005452,120]
[359373475,1745954483508,-808077.88,0.0005469,120]
[359373476,1745954483545,-1624.8781097,0.000547,120]
[359373477,1745954483584,-1000.0,0.000547,120]
[359373478,1745954483623,-144988.62747615,0.000547,120]
[359373479,1745954483662,-1000.0,0.00054767,60]
[359373480,1745954483701,-1000.0,0.00054767,60]
[359373481,1745954483739,-1000.0,0.00054767,60]
[359373482,1745954483777,-1000.0,0.00054767,60]
[359373483,1745954483815,-269.63564487,0.00054767,60]
[359373484,1745954483990,-815097.32025556,0.00054785,56]
[359373485,1745954488742,-155.0,0.00041,90]
[359373486,1745954488804,-168.0,0.00043,90]
[359373487,1745954488854,-168.0,0.00044877,90]
[359373488,1745954488937,-3184901.67974444,0.00054785,56]
[359373489,1745954488976,-814607.32025556,0.00054785,56]
[359373490,1745954494026,-1397729.47434144,0.00054785,56]
[359373491,1745954494067,-2602270.52565856,0.00054785,56]
[359373492,1745954497802,-248052.61925804,0.00054785,56]
[359373493,1745954497848,-2392591.9497426,0.00054785,56]
[359373494,1745954497890,-1359355.43099936,0.00054785,56]
[359373495,1745954504355,-649974.49044534,0.00054785,56]
[359373496,1745954504396,-1031192.5713614,0.00054785,56]
[359373497,1745954504435,-150.0,0.00054785,56]
[359373498,1745954504480,-5000.0,0.0005479,120]
[359373499,1745954504521,-500.0,0.00054794,120]
[359373500,1745954504560,-500.0,0.00054794,120]
[359373501,1745954504598,-500.0,0.00054794,120]
[359373502,1745954504637,-500.0,0.00054794,120]
[359373503,1745954504677,-500.0,0.00054794,120]
[359373504,1745954504714,-500.0,0.00054794,120]
[359373505,1745954504753,-500.0,0.00054794,120]
[359373506,1745954504790,-500.0,0.00054794,120]
[359373507,1745954504829,-206.95,0.00054794,120]
[359373508,1745954504867,-500.0,0.00054794,120]
[359373509,1745954504906,-500.0,0.00054794,120]
[359373510,1745954504945,-500.0,0.00054794,120]
[359373511,1745954504985,-163.57569425,0.00054794,120]
[359373512,1745954505025,-700.0,0.00054794,120]
[359373513,1745954505064,-700.0,0.00054794,120]
[359373514,1745954505103,-323.98607557,0.00054794,120]
[359373515,1745954505142,-500.0,0.00054794,120]
[359373516,1745954505182,-573.37159605,0.00054794,120]
[359373517,1745954505220,-1000.0,0.00054794,120]
[359373518,1745954505260,-1000.0,0.00054794,120]
[359373519,1745954505299,-1000.0,0.00054794,120]
[359373520,1745954505337,-1000.0,0.00054794,120]
[359373521,1745954505375,-1000.0,0.00054794,120]
[359373522,1745954505415,-1000.0,0.00054794,120]
[359373523,1745954505455,-1000.0,0.00054794,120]
[359373524,1745954505497,-1000.0,0.00054794,120]
[359373525,1745954505534,-1000.0,0.00054794,120]
[359373526,1745954505572,-1000.0,0.00054794,120]
[359373527,1745954505610,-1000.0,0.00054794,120]
[359373528,1745954505650,-1000.0,0.00054794,120]
[359373529,1745954505688,-1000.0,0.00054794,120]
[359373530,1745954505725,-1000.0,0.00054794,120]
[359373531,1745954505760,-1000.0,0.00054794,120]
[359373532,1745954505797,-1000.0,0.00054794,120]
[359373533,1745954505833,-1121.42398048,0.00054794,120]
[359373534,1745954505870,-155.0,0.00054795,30]
[359373535,1745954505906,-155.0,0.00054795,30]
[359373536,1745954505943,-155.0,0.00054795,30]
[359373537,1745954505980,-155.0,0.00054795,30]
[359373538,1745954506019,-155.0,0.00054795,30]
[359373539,1745954506056,-155.0,0.00054795,30]
[359373540,1745954506094,-155.0,0.00054795,30]
[359373541,1745954506132,-155.0,0.00054795,30]
[359373542,1745954506170,-155.0,0.00054795,30]
[359373543,1745954506208,-169.25881535,0.00054795,30]
[359373544,1745954506420,-500.0,0.00054795,33]
[359373545,1745954506460,-4000.0,0.00054795,60]
[359373546,1745954506499,-204.13,0.00054795,60]
[359373547,1745954506544,526.19,0.00050684,30]
[359373548,1745954506592,272844.24658021,0.00054785,56]
[359373549,1745954506634,526.19,0.00051506,33]
[359373550,1745954506680,526.19,0.00052328,36]
[359373551,1745954506802,526.19,0.0005315,39]
[359373552,1745954506895,526.19,0.00053972,42]
[359373553,1745954506941,150.0,0.0005479,120]
[359373554,1745954506990,526.19,0.00054794,45]
[359373555,1745954507137,150.0,0.00054794,120]
[359373556,1745954511303,350.429,0.0005474,30]
[359373557,1745954517528,1000.0,0.00054794,120]
[359373558,1745954518842,951913.30733295,0.00054785,56]
[359373559,1745954531111,-2503.0,0.00045933,30]
[359373560,1745954531150,-625.0,0.00045933,30]
[359373561,1745954531190,-312.0,0.00045933,30]
[359373562,1745954531228,-461.0,0.00045933,30]
[359373563,1745954531266,-1030.0,0.00045933,30]
[359373564,1745954531304,-572.17947163,0.00045933,60]
[359373565,1745954531341,-1004.54700895,0.00045933,30]
[359373566,1745954531377,-1214.0,0.00045933,30]
[359373567,1745954531413,-821.77459157,0.00045933,30]
[359373568,1745954531451,-332.81167711,0.00045933,120]
[359373569,1745954531488,-294.28457172,0.00045933,120]
[359373570,1745954531526,-419.99635691,0.00045933,30]
[359373571,1745954531562,-331.23817807,0.00045933,30]
[359373572,1745954531598,-246.73780147,0.00045933,90]
[359373573,1745954531634,-160.62986775,0.00045933,120]
[359373574,1745954531668,-406.52999464,0.00045933,120]
[359373575,1745954531703,-173.72879462,0.00045933,30]
[359373576,1745954531739,-408.54246941,0.00045933,120]
[359373577,1745954531776,-370.96349796,0.00045933,120]
[359373578,1745954531812,-1356.23405743,0.00045933,120]
[359373579,1745954531847,-487.34179461,0.00045933,120]
[359373580,1745954531883,-314.65061385,0.00045933,120]
[359373581,1745954531919,-194.11431865,0.00045933,30]
[359373582,1745954531955,-210.13322712,0.00045933,120]
[359373583,1745954531993,-2281.67552133,0.00045933,120]
[359373584,1745954532031,-1011.44469924,0.00045933,120]
[359373585,1745954532068,-1829.16899775,0.00045933,30]
[359373586,1745954532106,-193.19932638,0.00045933,30]
[359373587,1745954532144,-916.31752895,0.00045933,120]
[359373588,1745954532181,-358.31480873,0.00045933,120]
[359373589,1745954532215,-972.76544894,0.00045933,60]
[359373590,1745954532249,-363.71138391,0.00045933,120]
[359373591,1745954532283,-161.22156698,0.00045933,120]
[359373592,1745954532317,-506.99751978,0.00045933,30]
[359373593,1745954532350,-230.50625879,0.00045933,30]
[359373594,1745954532384,-607.0,0.00045933,30]
[359373595,1745954532429,-50000.0,0.00045933,30]
[359373596,1745954532478,-50000.0,0.00045933,31]
[359373597,1745954532712,-50000.0,0.00045933,32]
[359373598,1745954532751,-50000.0,0.00045933,33]
[359373599,1745954532788,-1172.03431343,0.00045933,30]
[359373600,1745954532824,-499.999999,0.00045933,120]
[359373601,1745954532860,-170.0,0.00045933,120]
[359373602,1745954532902,-304.0,0.00045933,30]
[359373603,1745954532941,-100825.85273551,0.00045933,120]
[359373604,1745954532980,-3004.65964621,0.00045933,30]
[359373605,1745954533018,-55252.54937335,0.00045933,120]
[359373606,1745954533058,-230000.0,0.00045933,120]
[359373607,1745954533097,-350000.0,0.00045933,120]
[359373608,1745954533136,-302062.31624211,0.00045933,30]
[359373609,1745954533176,-5000.0,0.00045933,120]
[359373610,1745954533213,-996.75,0.00045933,120]
[359373611,1745954533249,-1000.0,0.00045933,120]
[359373612,1745954533286,-1044.27860751,0.00045933,60]
[359373613,1745954533325,-1097.34163711,0.00045933,120]
[359373614,1745954533361,-470.0,0.00045933,60]
[359373615,1745954533397,-533.11728784,0.00045933,60]
[359373616,1745954533440,-2000.0,0.00045933,31]
[359373617,1745954533480,-102260.18274711,0.00045933,45]
[359373618,1745954533519,-133334.88944034,0.00045933,39]
[359373619,1745954533556,-44985.46029779,0.00045933,120]
[359373620,1745954533592,-1000.0,0.00045933,30]
[359373621,1745954533629,-234.0,0.00045933,120]
[359373622,1745954533668,-432.0,0.00045933,120]
[359373623,1745954533702,-191.85074699,0.00045933,60]
[359373624,1745954533739,-333019.47,0.00045933,120]
[359373625,1745954533775,-429956.61299999,0.00045933,60]
[359373626,1745954533817,-160.0,0.00045933,30]
[359373627,1745954533856,-7002.0,0.00045933,30]
[359373628,1745954533896,-158.08769554,0.00045933,120]
[359373629,1745954533936,-210.90262116,0.00045933,120]
[359373630,1745954533978,-155.94160806,0.00045933,120]
[359373631,1745954534016,-314.83844413,0.00045933,30]
[359373632,1745954534056,-29444.34421263,0.00045933,60]
[359373633,1745954534094,-20000.0,0.00045933,120]
[359373634,1745954534130,-55124.74786047,0.00045933,120]
[359373635,1745954534165,-383755.0,0.00045933,60]
[359373636,1745954534202,-13433.18761427,0.00045933,30]
[359373637,1745954534236,-10757.96458346,0.00045933,30]
[359373638,1745954534271,-27051.59271416,0.00045933,30]
[359373639,1745954534305,-194336.78136335,0.00045933,30]
[359373640,1745954534339,-32722.14736895,0.00045933,30]
[359373641,1745954534371,-29047.01499316,0.00045933,30]
[359373642,1745954534403,-15264.24889856,0.00045933,30]
[359373643,1745954534438,-50000.0,0.00045933,30]
[359373644,1745954534476,-35602.40671812,0.00045933,30]
[359373645,1745954534511,-13182.43541831,0.00045933,30]
[359373646,1745954534547,-30842.38029212,0.00045933,30]
[359373647,1745954534580,-13108.68502469,0.00045933,30]
[359373648,1745954534614,-37559.07284558,0.00045933,30]
[359373649,1745954534651,-33625.59023575,0.00045933,30]
[359373650,1745954534695,-27501.55780674,0.00045933,30]
[359373651,1745954534735,-281.7605727,0.00045933,120]
[359373652,1745954534772,-11614.63700976,0.00045933,120]
[359373653,1745954534809,-368.71473446,0.00045933,120]